[Event "1st Festival Galdar 2024"]
[Site "Galdar"]
[Date "2024.09.03"]
[Round "3.1"]
[White "Del Rio De Angelis, Salvador G."]
[Black "Stefansson, Vignir Vatnar"]
[Result "1/2-1/2"]
[Annotator "TA"]
[ECO "D35"]
[WhiteElo "2376"]
[BlackElo "2531"]
[PlyCount "98"]
[EventDate "2024.09.02"]
[EventType "swiss"]
[EventCountry "ESP"]
[SourceTitle "playchess.com"]
[Source "ChessBase"]
[SourceQuality "1"]
[TimeControl "5400+30"]

{[%evp 9,98,18,32,31,38,24,38,36,30,20,23,18,18,20,22,21,18,19,18,27,31,23,23,18,27,19,35,0,33,0,43,38,44,43,62,43,51,14,74,28,14,20,105,89,81,79,87,84,93,78,94,73,91,83,83,69,75,77,77,81,78,73,78,82,89,97,90,57,56,64,64,68,53,71,70,65,45,45,125,120,120,117,125,126,126,126,123,119,119,0,9]} 1. d4 {[%emt 0:00:52]} d5 {[%emt 0:00:07]} 2. c4 {[%emt 0:00:08]} e6 {[%emt 0:00:03]} 3. Nc3 {[%emt 0:00:12]} Nf6 {[%emt 0:00:08]} 4. cxd5 {[%emt 0:00:09]} exd5 {[%emt 0:00:06]} 5. Bg5 {[%emt 0:00:09]} Be6 {[%emt 0:00:05]} 6. e3 {[%emt 0:00:29]} Nbd7 {[%emt 0:00:06]} 7. Bd3 {[%emt 0:01:12]} c6 {[%emt 0:00:13]} 8. h3 {[%emt 0:02:48] White is slightly better.} Be7 {[%emt 0:00:45]} 9. Nge2 {[%emt 0:01:22]} Nh5 {[%emt 0:03:34]} 10. Nf4 {[%emt 0:06:58]} Nxf4 {[%emt 0:01:04]} 11. Bxf4 {[%emt 0:00:06]} O-O {[%emt 0:01:25]} 12. Qc2 {[%emt 0:01:34]} h6 {[%emt 0:00:43]} 13. O-O {[%emt 0:00:21]} Re8 {[%emt 0:04:18]} 14. Rad1 {[%emt 0:00:33]} Rc8 {[%emt 0:00:24]} 15. Qd2 {[%emt 0:04:03]} a6 {[%emt 0:05:30]} 16. Bb1 {[%emt 0:00:33]} Nf6 {[%emt 1:19:59]} 17. Be5 {[%emt 0:04:16]} Nd7 {[%emt 0:00:00]} 18. Bf4 {[%emt 0:00:10]} Nf6 {[%emt 0:00:00]} 19. Be5 {[%emt 0:00:06]} Ne4 {[%emt 0:01:30]} 20. Nxe4 {[%emt 0:04:44]} (20. Bxe4 dxe4 21. Qe2 b5 $15) 20... dxe4 {[%emt 0:00:00]} 21. f3 {[%emt 0:00:05]} exf3 {[%emt 0:00:00]} 22. Rxf3 {[%emt 0:00:09] [#] Strongly threatening Qc2.} Bd6 {[%emt 0:00:00]} 23. Qc2 {[%emt 0:08:16]} f5 {[%emt 0:00:00]} ({Don't blunder} 23... Bxe5 $2 24. dxe5 Qg5 25. Qh7+ Kf8 26. Bf5 $18) (23... g6 $11) 24. Bxd6 {[%emt 0:06:17]} (24. g4 $16 Bxe5 25. dxe5) 24... Qxd6 $11 {[%emt 0:00:00]} 25. e4 {[%emt 0:00:07]} c5 {[%emt 0:00:00]} ({Wrong is} 25... fxe4 $2 26. Qxe4 $18) (25... Re7 $11 {keeps the balance.}) 26. dxc5 {[%emt 0:07:01]} (26. d5 {is more complex.} Bf7 27. exf5 Kh7 28. f6+) 26... Qxc5+ {[%emt 0:00:00]} 27. Qxc5 {[%emt 0:00:07]} Rxc5 {[%emt 0:00:00]} 28. exf5 {[%emt 0:00:08]} Bd5 {[%emt 0:00:00]} 29. Rf2 {[%emt 0:05:31]} Bc6 {[%emt 0:00:00]} 30. a3 {[%emt 0:04:01]} Rce5 {[%emt 0:00:00]} 31. Ba2+ {[%emt 0:00:07]} Kf8 {[%emt 0:00:00]} 32. f6 {[%emt 0:04:10] [#] fxg7+ would now be deadly.} Re1+ $1 {[%emt 0:00:00]} 33. Rxe1 {[%emt 0:00:07]} Rxe1+ $16 {[%emt 0:00:00][%mdl 4096] Endgame. KRB-KRB} 34. Kh2 {[%emt 0:00:04]} gxf6 {[%emt 0:00:00]} 35. Rxf6+ {[%emt 0:00:07]} Kg7 {[%emt 0:00:00]} 36. Rf2 {[%emt 0:00:30]} a5 {[%emt 0:00:00]} 37. Kg3 {[%emt 0:01:26]} Re3+ {[%emt 0:00:00]} 38. Kf4 {[%emt 0:01:30]} Re4+ {[%emt 0:00:00]} 39. Kf5 $1 {[%emt 0:00:53]} Re3 {[%emt 0:00:00]} 40. Bc4 {[%emt 0:05:52]} Rg3 {[%emt 0:00:00]} 41. Bf1 {[%emt 0:00:06]} h5 {[%emt 0:00:00][%cal Bh6h5,Bh5h4][%mdl 32]} 42. Rd2 {[%emt 0:06:26]} Rg6 {[%emt 0:00:00]} 43. Ke5 {[%emt 0:01:41]} a4 {[%emt 0:00:13]} (43... Rg3 $1 $14) 44. Bd3 {[%emt 0:09:00]} Rg3 {[%emt 0:01:23]} 45. Kf4 {[%emt 0:00:39]} h4 {[%emt 0:01:52]} 46. Be4 {[%emt 0:02:57]} Bxe4 {[%emt 0:00:07]} 47. Kxe4 {[%emt 0:00:05]} Kf6 {[%emt 0:01:41]} 48. Kd5 {[%emt 0:00:45]} Kg5 {[%emt 0:01:38]} 49. Ke4 {[%emt 0:00:48]} (49. Kc5 $16) 49... Rb3 {[%emt 0:00:42] Weighted Error Value: White=0.09 (flawless) /Black=0.11 (very precise) .  Mistake:       	White=2     	Black=3      Inaccurate:     	White=2     	Black=1      OK:         	White=15    	Black=19     Best:        	White=4     	Black=1      Strong:       	White=1     	Black=1} 1/2-1/2

[Event "1st Festival Galdar 2024"]
[Site "Galdar"]
[Date "2024.09.03"]
[Round "3.2"]
[White "Sumets, Andrey"]
[Black "Ladron De Guevara Pinto, Paolo"]
[Result "1/2-1/2"]
[Annotator "TA"]
[ECO "D37"]
[WhiteElo "2517"]
[BlackElo "2371"]
[PlyCount "68"]
[EventDate "2024.09.02"]
[EventType "swiss"]
[EventCountry "ESP"]
[SourceTitle "playchess.com"]
[Source "ChessBase"]
[SourceQuality "1"]
[TimeControl "5400+30"]

{[%evp 12,68,23,28,20,23,22,29,17,18,27,18,18,20,12,14,18,28,17,24,25,20,27,18,26,28,53,59,50,47,50,39,48,50,47,17,14,0,0,0,0,0,13,0,0,0,8,8,8,8,8,8,8,8,8,8,8,0,22]} 1. d4 {[%emt 0:04:46]} d5 {[%emt 0:00:04]} 2. c4 {[%emt 0:00:20]} e6 {[%emt 0:00:12]} 3. Nf3 {[%emt 0:00:05]} Nf6 {[%emt 0:00:09]} 4. Nc3 {[%emt 0:00:39]} Be7 {[%emt 0:00:58]} 5. Bf4 {[%emt 0:01:08]} O-O {[%emt 0:00:17]} 6. e3 {[%emt 0:00:03]} b6 {[%emt 0:00:40]} 7. Bd3 {[%emt 0:01:33]} dxc4 {[%emt 0:01:17]} 8. Bxc4 {[%emt 0:00:05]} Ba6 {[%emt 0:02:08]} 9. Qe2 {[%emt 0:02:08]} Bxc4 {[%emt 0:05:43] White has an edge.} 10. Qxc4 {[%emt 0:00:06][%cal Oa1c1]} c5 {[%emt 0:00:05]} 11. dxc5 {[%emt 0:10:02]} Bxc5 {[%emt 0:02:28]} 12. O-O {[%emt 0:00:12]} Qc8 {[%emt 0:17:04]} 13. Rfd1 {[%emt 0:08:23]} Be7 {[%emt 0:02:16]} 14. Qxc8 {[%emt 0:17:41]} Rxc8 {[%emt 0:00:15]} 15. Rac1 {[%emt 0:06:30][%cal Oc3d5] [#] Nd5! would now be deadly.} Nc6 {[%emt 0:05:44]} 16. Kf1 {[%emt 0:22:30]} Kf8 {[%emt 0:08:37]} 17. Nb5 {[%emt 0:02:07]} Ne8 {[%emt 0:01:03] Prevents Nc7.} 18. e4 {[%emt 0:03:51]} f6 {[%emt 0:12:23]} 19. e5 {[%emt 0:07:27]} fxe5 {[%emt 0:00:40]} 20. Nxe5 {[%emt 0:00:09]} Nxe5 {[%emt 0:00:52]} 21. Bxe5 {[%emt 0:00:06]} Bf6 {[%emt 0:09:47]} 22. Bxf6 {[%emt 0:00:18]} (22. Rxc8 Rxc8 23. Nxa7 Ra8 $15) 22... gxf6 {[%emt 0:00:05]} 23. Rxc8 {[%emt 0:04:14]} Rxc8 {[%emt 0:00:34] The position is equal.} 24. Nxa7 $14 {[%emt 0:00:58][%mdl 4096] Endgame. KRN-KRN} Rc2 {[%emt 0:00:37]} 25. b4 {[%emt 0:02:49]} Rxa2 {[%emt 0:01:25]} 26. Rd7 {[%emt 0:00:39]} f5 {[%emt 0:00:45]} 27. Nc6 {[%emt 0:01:20]} Nf6 {[%emt 0:00:36]} 28. Rb7 {[%emt 0:02:19][%cal Oc6d8]} Ng4 {[%emt 0:02:20]} 29. h3 {[%emt 0:00:11]} Nxf2 {[%emt 0:00:05]} 30. Nd4 {[%emt 0:00:15]} e5 {[%emt 0:02:57]} 31. Nxf5 {[%emt 0:00:05]} Nd3 {[%emt 0:00:35] [#] ...Rf2+ is the strong threat.} 32. g4 {[%emt 0:00:11]} (32. Rxb6 $2 {too greedy.} Rf2+ 33. Kg1 Rxf5 $19) 32... Nxb4 {[%emt 0:10:55]} 33. Rxh7 {[%emt 0:00:05]} Nd3 {[%emt 0:00:22]} 34. Rb7 {[%emt 0:00:12]} Ra1+ {[%emt 0:00:37] Weighted Error Value: White=0.03 (flawless) /Black=0.03 (flawless) .  Inaccurate:     	White=1     	---        OK:         	White=9     	Black=12     Best:        	---       	Black=2} 1/2-1/2

[Event "1st Festival Galdar 2024"]
[Site "Galdar"]
[Date "2024.09.03"]
[Round "3.3"]
[White "Beerdsen, Thomas"]
[Black "Perez Garcia, Rodney Oscar"]
[Result "1-0"]
[Annotator "TA"]
[ECO "C10"]
[WhiteElo "2509"]
[BlackElo "2313"]
[PlyCount "39"]
[EventDate "2024.09.02"]
[EventType "swiss"]
[EventCountry "ESP"]
[SourceTitle "playchess.com"]
[Source "ChessBase"]
[SourceQuality "1"]
[TimeControl "5400+30"]

{[%evp 14,39,37,43,47,34,31,24,37,32,26,29,34,29,54,59,60,50,53,56,53,43,87,66,84,74,245,239]} 1. e4 {[%emt 0:01:20]} e6 {[%emt 0:00:46]} 2. d4 {[%emt 0:00:06]} d5 {[%emt 0:00:19]} 3. Nc3 {[%emt 0:00:27]} dxe4 {[%emt 0:00:21]} 4. Nxe4 {[%emt 0:00:30]} Nd7 {[%emt 0:00:09]} 5. Nf3 {[%emt 0:00:36]} Be7 {[%emt 0:03:24]} 6. Bd3 {[%emt 0:01:03]} Ngf6 {[%emt 0:00:17]} 7. Qe2 {[%emt 0:00:40]} c5 {[%emt 0:06:47]} 8. Nxc5 {[%emt 0:00:10]} Bxc5 {[%emt 0:01:45]} 9. dxc5 {[%emt 0:00:05]} Nxc5 {[%emt 0:00:06]} 10. Bc4 {[%emt 0:00:06]} O-O {[%emt 0:06:21] White has an edge.} 11. O-O {[%emt 0:05:11][%cal Bh1f1,Bf1d1,Bd1d4][%mdl 32]} b6 {[%emt 0:01:06]} 12. Rd1 {[%emt 0:01:47]} Qc7 {[%emt 0:01:34]} 13. Rd4 {[%emt 0:00:12]} Bb7 {[%emt 0:24:22]} 14. Bf4 {[%emt 0:00:15][%cal Bc1f4,Bf4e5,Be5d6][%mdl 32]} Qc8 {[%emt 0:03:37] Black is weak on the dark squares} 15. Be5 {[%emt 0:13:27] Strongly threatening Bxf6. A strong pair of Bishops.} Ncd7 {[%emt 0:25:31]} 16. Bd6 {[%emt 0:02:18]} Re8 {[%emt 0:03:40]} 17. Rad1 {[%emt 0:07:45]} a6 {[%emt 0:02:56]} 18. Ne5 {[%emt 0:13:53]} b5 {[%emt 0:04:26] [#] ...Nxe5 is the strong threat.} 19. Bd3 {[%emt 0:04:02] White is much more active.} Nc5 $2 {[%emt 0:02:52]} (19... Nxe5 $16 20. Bxe5 (20. Qxe5 Qc6 $14) 20... Qc6) 20. Rf4 {[%emt 0:09:51] Weighted Error Value: White=0.04 (flawless) /Black=0.32.  Loses game:     	---       	Black=1      Inaccurate:     	---       	Black=1      OK:         	White=5     	Black=4      Best:        	White=1     	---} 1-0

[Event "1st Festival Galdar 2024"]
[Site "Galdar"]
[Date "2024.09.03"]
[Round "3.4"]
[White "Barlov, Dragan"]
[Black "Zwirs, Nico"]
[Result "1-0"]
[Annotator "RC"]
[ECO "D50"]
[WhiteElo "2375"]
[BlackElo "2485"]
[PlyCount "129"]
[EventDate "2024.09.02"]
[EventType "swiss"]
[EventCountry "ESP"]
[SourceTitle "playchess.com"]
[Source "ChessBase"]
[SourceQuality "1"]
[TimeControl "5400+30"]

1. c4 {[%emt 0:00:53]} e6 {[%emt 0:00:06]} 2. Nc3 {[%emt 0:00:51]} d5 {[%emt 0:00:06]} 3. d4 {[%emt 0:00:15]} Nf6 {[%emt 0:00:03]} 4. Bg5 {[%emt 0:01:33]} dxc4 {[%emt 0:00:17]} 5. e3 {[%emt 0:01:07]} c5 {[%emt 0:00:33]} 6. dxc5 {[%emt 0:07:14]} Qxd1+ {[%emt 0:01:32]} 7. Rxd1 {[%emt 0:00:22]} Bxc5 {[%emt 0:00:02]} 8. Bxc4 {[%emt 0:01:11]} a6 {[%emt 0:00:08]} 9. Nf3 {[%emt 0:07:29]} b5 {[%emt 0:03:47]} 10. Bd3 {[%emt 0:03:58]} Nbd7 {[%emt 0:02:31]} 11. Rc1 {[%emt 0:04:06]} Be7 {[%emt 0:06:06]} 12. O-O {[%emt 0:17:38]} Bb7 {[%emt 0:03:36]} 13. Rfd1 {[%emt 0:02:22]} h6 {[%emt 0:14:37]} 14. Bh4 {[%emt 0:03:35]} Rc8 {[%emt 0:10:54]} 15. Be2 {[%emt 0:02:47]} Nb6 {[%emt 0:06:46]} 16. Ne5 {[%emt 0:09:01]} O-O {[%emt 0:06:10]} 17. Bf3 {[%emt 0:12:12]} Bxf3 {[%emt 0:00:09]} 18. gxf3 {[%emt 0:00:34]} Rc5 {[%emt 0:08:51]} 19. Nd3 {[%emt 0:02:49]} Rc4 {[%emt 0:01:20]} 20. Bg3 {[%emt 0:07:40]} Rd8 {[%emt 0:09:13]} 21. Ne5 {[%emt 0:02:55]} Rxd1+ {[%emt 0:01:10]} 22. Rxd1 {[%emt 0:00:05]} Rc8 {[%emt 0:00:24]} 23. Kf1 {[%emt 0:04:52]} b4 {[%emt 0:04:12]} 24. Ne2 {[%emt 0:00:20]} Nh5 {[%emt 0:13:31]} 25. Nd4 {[%emt 0:01:57]} Bf6 {[%emt 0:00:09]} 26. Ndc6 {[%emt 0:03:28]} Nd5 {[%emt 0:04:46]} 27. f4 {[%emt 0:00:33]} Bxe5 {[%emt 0:00:25]} 28. Nxe5 {[%emt 0:00:06]} Rc2 {[%emt 0:00:06]} 29. Nd3 {[%emt 0:00:36]} Nhf6 {[%emt 0:00:31]} 30. Ke1 {[%emt 0:00:51]} Ne4 {[%emt 0:00:05]} 31. Rc1 {[%emt 0:00:27]} Rd2 {[%emt 0:02:29]} 32. Rd1 {[%emt 0:01:56]} Rc2 {[%emt 0:00:41]} 33. Rc1 {[%emt 0:00:07]} Rxc1+ {[%emt 0:01:00]} 34. Nxc1 {[%emt 0:00:02]} Nc5 {[%emt 0:00:29]} 35. Ke2 {[%emt 0:00:34]} a5 {[%emt 0:00:12]} 36. Nd3 {[%emt 0:00:49]} Ne4 {[%emt 0:00:57]} 37. f3 {[%emt 0:00:14]} Nxg3+ {[%emt 0:00:14]} 38. hxg3 {[%emt 0:00:02]} Kf8 {[%emt 0:00:26]} 39. e4 {[%emt 0:00:19]} Nb6 {[%emt 0:00:08]} 40. Ne5 {[%emt 0:01:44]} Ke7 {[%emt 0:01:08]} 41. Nc6+ {[%emt 0:00:23]} Kd6 {[%emt 0:00:01]} 42. Nxa5 {[%emt 0:00:08]} Na4 {[%emt 0:00:55]} 43. Nc4+ {[%emt 0:01:18]} Kc5 {[%emt 0:00:00]} 44. Kd3 {[%emt 0:00:21]} f6 {[%emt 0:00:01]} 45. b3 {[%emt 0:00:28]} Nc3 {[%emt 0:00:02]} 46. a4 {[%emt 0:00:36]} g5 {[%emt 0:00:06]} 47. fxg5 {[%emt 0:00:16]} hxg5 {[%emt 0:00:44]} 48. Nb2 {[%emt 0:00:35]} Na2 {[%emt 0:00:51]} 49. Ke3 {[%emt 0:01:21]} e5 {[%emt 0:01:47]} 50. Nd3+ {[%emt 0:00:00]} Kb6 {[%emt 0:00:09]} 51. Kd2 {[%emt 0:00:03]} g4 {[%emt 0:00:44]} 52. fxg4 {[%emt 0:00:43]} Nc3 {[%emt 0:00:31]} 53. Ke3 {[%emt 0:00:18]} Na2 {[%emt 0:00:16]} 54. g5 {[%emt 0:00:34]} fxg5 {[%emt 0:00:03]} 55. Nxe5 {[%emt 0:00:06]} Nc1 {[%emt 0:00:16]} 56. Nc4+ {[%emt 0:00:13]} Kc6 {[%emt 0:00:18]} 57. Nd2 {[%emt 0:00:18]} Kc5 {[%emt 0:00:00]} 58. g4 {[%emt 0:00:37]} Na2 {[%emt 0:00:05]} 59. Nf3 {[%emt 0:00:50]} Nc1 {[%emt 0:00:23]} 60. Nd4 {[%emt 0:00:13]} Kd6 {[%emt 0:00:22]} 61. a5 {[%emt 0:00:59]} Na2 {[%emt 0:00:11]} 62. a6 {[%emt 0:00:13]} Kc7 {[%emt 0:00:05]} 63. Nb5+ {[%emt 0:00:16]} Kb6 {[%emt 0:00:08]} 64. a7 {[%emt 0:00:06]} Kb7 {[%emt 0:00:01]} 65. Kd2 {[%emt 0:00:12]} 1-0

[Event "1st Festival Galdar 2024"]
[Site "Galdar"]
[Date "2024.09.03"]
[Round "3.5"]
[White "Fernandez Garcia, Jose Miguel"]
[Black "Cuenca Jimenez, Jose Fernando"]
[Result "0-1"]
[Annotator "TA"]
[ECO "B07"]
[WhiteElo "2368"]
[BlackElo "2466"]
[PlyCount "80"]
[EventDate "2024.09.02"]
[EventType "swiss"]
[EventCountry "ESP"]
[SourceTitle "playchess.com"]
[Source "ChessBase"]
[SourceQuality "1"]
[TimeControl "5400+30"]

{[%evp 9,80,10,34,0,0,-7,0,-28,-27,-23,-24,-13,-31,-39,-8,-6,-4,-15,-20,-11,0,-21,0,-12,-14,-14,27,27,25,23,27,5,18,16,12,7,4,6,4,0,11,0,5,0,0,-3,0,-4,0,-23,0,-283,-289,-432,-458,-467,-462,-456,-466,-502,-456,-481,-432,-497,-443,-536,-515,-541,-495,-505,-491,-503,-499]} 1. e4 {[%emt 0:00:02]} e5 {[%emt 0:01:11]} 2. Nc3 {[%emt 0:01:34]} Nf6 {[%emt 0:00:49]} 3. d4 {[%emt 0:00:40]} d6 {[%emt 0:03:34]} 4. h3 {[%emt 0:10:07]} Be7 {[%emt 0:05:21]} 5. Nge2 {[%emt 0:24:16]} c6 {[%emt 0:03:23]} 6. Ng3 {[%emt 0:03:02]} exd4 {[%emt 0:04:12]} 7. Qxd4 {[%emt 0:00:25]} O-O {[%emt 0:00:51]} 8. Bf4 {[%emt 0:02:20] The position is equal.} d5 {[%emt 0:02:02]} 9. exd5 {[%emt 0:03:14]} cxd5 {[%emt 0:01:01]} 10. Bxb8 {[%emt 0:00:29]} Rxb8 {[%emt 0:01:27]} 11. Bd3 {[%emt 0:01:06]} Qc7 {[%emt 0:06:35]} 12. O-O {[%emt 0:01:24]} Qc5 {[%emt 0:09:04]} 13. Qf4 {[%emt 0:11:48]} Bd6 {[%emt 0:05:16]} 14. Qh4 {[%emt 0:00:37]} Be5 {[%emt 0:07:32]} 15. Rae1 {[%emt 0:08:49]} Qd4 {[%emt 0:24:36]} 16. Qxd4 {[%emt 0:07:25]} Bxd4 {[%emt 0:00:03]} 17. Nb5 {[%emt 0:00:53]} Bxb2 {[%emt 0:02:05]} 18. Rb1 $1 {[%emt 0:00:31][%cal Be1b1,Bb1b2,Bb2b5][%mdl 32]} a6 $1 {[%emt 0:02:01]} ({Not} 18... Be5 $2 19. f4 $18 (19. Nxa7 Bd7 $15)) 19. Rxb2 {[%emt 0:00:51]} axb5 {[%emt 0:00:03]} 20. Rxb5 {[%emt 0:02:13]} Ra8 {[%emt 0:04:46]} 21. Ra1 {[%emt 0:00:58]} Ra7 {[%emt 0:01:27]} 22. Ne2 {[%emt 0:03:14]} Bd7 {[%emt 0:01:25]} 23. Rb6 {[%emt 0:07:08]} Ne4 {[%emt 0:03:28]} 24. Nf4 {[%emt 0:04:47]} Nc3 {[%emt 0:02:13][%cal Od7a4]} 25. Ne2 {[%emt 0:01:52]} Ne4 {[%emt 0:02:50]} 26. Nf4 {[%emt 0:00:01]} Bc6 {[%emt 0:00:43]} 27. c4 {[%emt 0:01:04]} dxc4 {[%emt 0:01:09]} 28. Bxc4 {[%emt 0:00:07]} Ra5 {[%emt 0:00:42]} 29. Re1 {[%emt 0:03:17][%cal Ob6c6] Rxc6! would now be deadly.} Nc3 {[%emt 0:02:03][%cal Oa5a4] And now ...Ra4! would win.} 30. Rb2 $2 {[%emt 0:00:44][%mdl 8192] [#]} (30. Nd3 $11 {and White has nothing to worry.}) 30... Ra4 $1 $19 {[%emt 0:00:15]} 31. Rc2 {[%emt 0:00:30]} (31. Ne6 $142 fxe6 32. Bxe6+ Kh8 33. Bb3) 31... Rxc4 {[%emt 0:00:08] Black is clearly winning.} 32. Nd3 {[%emt 0:00:31]} Ba4 {[%emt 0:00:49]} 33. Rb2 {[%emt 0:01:01]} b5 {[%emt 0:00:31]} 34. Kh2 {[%emt 0:00:00]} Nd5 {[%emt 0:01:14]} 35. Re5 {[%emt 0:00:00]} Nf4 {[%emt 0:00:33]} 36. Nb4 {[%emt 0:00:46]} Rd8 {[%emt 0:01:11]} 37. a3 {[%emt 0:00:39]} h6 {[%emt 0:00:19]} 38. Re3 {[%emt 0:00:15]} Ne6 {[%emt 0:02:38]} 39. Rbe2 {[%emt 0:00:32]} Rd6 {[%emt 0:00:00]} 40. Rb2 {[%emt 0:00:18]} Rcd4 {[%emt 0:00:00] Weighted Error Value: White=0.31/Black=0.13 (very precise) .  Loses game:     	White=1     	---        Mistake:       	White=1     	---        Inaccurate:     	White=1     	Black=2      OK:         	White=10    	Black=12     Best:        	---       	Black=1      Strong:       	White=1     	Black=2} 0-1

[Event "1st Festival Galdar 2024"]
[Site "Galdar"]
[Date "2024.09.03"]
[Round "3.6"]
[White "Domalchuk-Jonasson, Aleksandr"]
[Black "Lopez Martinez, Josep Manuel"]
[Result "0-1"]
[Annotator "TA"]
[ECO "D37"]
[WhiteElo "2366"]
[BlackElo "2448"]
[PlyCount "70"]
[EventDate "2024.09.02"]
[EventType "swiss"]
[EventCountry "ESP"]
[SourceTitle "playchess.com"]
[Source "ChessBase"]
[SourceQuality "1"]
[TimeControl "5400+30"]

{[%evp 9,70,15,36,13,14,12,9,9,20,7,7,8,0,-34,-22,-21,-28,-8,-13,-29,-13,-19,-26,-143,-149,-160,-116,-119,-127,-114,-89,-78,-72,-152,-124,-202,-212,-382,-389,-459,-454,-831,-781,-834,-823,-810,-818,-1597,-1414,-507,-1430,-1797,-1691,-1398,-1240,-1278,-1235,-29978,-29979,-29988,-2221,-29989,-29990]} 1. c4 {[%emt 0:00:04]} e6 {[%emt 0:00:45]} 2. Nc3 {[%emt 0:00:16]} d5 {[%emt 0:01:05]} 3. d4 {[%emt 0:00:09]} h6 {[%emt 0:01:56]} 4. Nf3 {[%emt 0:00:35]} Nf6 {[%emt 0:00:24]} 5. e3 {[%emt 0:03:59]} a6 {[%emt 0:07:08]} 6. a3 {[%emt 0:00:58]} c5 {[%emt 0:01:48]} 7. dxc5 {[%emt 0:02:33]} Bxc5 {[%emt 0:00:10]} 8. b4 {[%emt 0:00:17] The position is equal.} Bd6 {[%emt 0:00:33]} 9. Ra2 {[%emt 0:01:13]} a5 {[%emt 0:05:37]} 10. b5 {[%emt 0:02:29][%cal Oe3e4]} O-O {[%emt 0:00:26]} 11. Rd2 {[%emt 0:01:53][%cal Rc4d5]} Qe7 {[%emt 0:00:21]} 12. cxd5 {[%emt 0:15:21]} exd5 {[%emt 0:02:40]} 13. Nxd5 {[%emt 0:00:11]} Nxd5 {[%emt 0:00:26]} 14. Rxd5 {[%emt 0:00:04]} Bxa3 {[%emt 0:00:34]} 15. Bxa3 {[%emt 0:00:10]} Qxa3 {[%emt 0:00:34]} 16. Ne5 {[%emt 0:07:48]} (16. Rd2 $11 {remains equal.}) 16... Be6 $17 {[%emt 0:03:15]} 17. Rd4 {[%emt 0:03:37]} Qc5 {[%emt 0:12:06]} 18. Nd3 {[%emt 0:30:02]} Qxb5 {[%emt 0:01:47] Threatens to win with ...a4. Black is more active.} 19. Nf4 {[%emt 0:00:17]} Qb6 {[%emt 0:01:59] Strongly threatening ...Nc6.} 20. Nxe6 {[%emt 0:01:56]} Qxe6 {[%emt 0:00:27]} 21. Bb5 {[%emt 0:05:49]} (21. Bc4 $142 Qb6 22. Qa1) 21... Qb6 $36 {[%emt 0:01:05][%mdl 2048] Black is on the roll.} 22. Qh5 {[%emt 0:06:02]} (22. Be2 $17 {might work better.}) 22... Nc6 $19 {[%emt 0:11:15]} 23. Rf4 {[%emt 0:10:46] [#]} (23. Rd1 {was worth a try.}) 23... a4 $1 {[%emt 0:02:34][%mdl 512]} 24. O-O {[%emt 0:04:35]} (24. Bxa4 g5) 24... Ra5 {[%emt 0:00:31]} 25. Rf5 {[%emt 0:01:23]} (25. Rxa4 $142 Qxb5 (25... Rxb5 $2 26. Qh4 $19) 26. Qxb5 Rxb5 27. Rc1) 25... g6 {[%emt 0:02:13]} 26. Qxh6 {[%emt 0:00:25]} Rxb5 {[%emt 0:00:11]} ({Not} 26... gxf5 27. Qg5+ Kh7 28. Qxf5+ Kh8 29. Qh5+ Kg7 30. Qg5+ Kh7 31. Qf5+ Kg8 32. Qg5+ (32. Qg4+ Kh7 $11) 32... Kh7 33. Qf5+ $11) 27. Rf6 {[%emt 0:00:01]} Qc7 {[%emt 0:00:30]} 28. f4 {[%emt 0:00:40]} Qe7 {[%emt 0:02:12][%csl LRe3,LRf6]} 29. Rxg6+ {[%emt 0:00:39]} fxg6 {[%emt 0:00:27]} 30. Qxg6+ {[%emt 0:00:02]} Qg7 {[%emt 0:01:28]} 31. Qe6+ {[%emt 0:00:07]} Qf7 {[%emt 0:00:56]} 32. Qg4+ {[%emt 0:00:02]} Kh8 {[%emt 0:00:42]} 33. Rf3 {[%emt 0:00:40]} Rb1+ {[%emt 0:01:53]} 34. Kf2 {[%emt 0:00:08] [#]} Qa2+ $1 {[%emt 0:00:16]} ({Weaker is} 34... Qh7 35. Rh3 $17) 35. Kg3 {[%emt 0:00:02]} Rg8 {[%emt 0:00:12] Weighted Error Value: White=0.88/Black=0.18 (very precise) .  Mistake:       	White=5     	---        Inaccurate:     	White=1     	---        OK:         	White=9     	Black=9      Best:        	---       	Black=3      Brilliant:      	---       	Black=1} 0-1